fUSD/lending_fUSD_20240615
["ID","MTS","AMOUNT","RATE_DAILY","PERIOD"]
[329601097,1718494268280,-151.0,0.0001959,2]
[329601098,1718494268301,-197.0,0.00019612,15]
[329601099,1718494268327,-150.5,0.00019622,15]
[329601100,1718494268339,-150.5,0.00019632,15]
[329601101,1718494268357,-150.5,0.00019642,15]
[329601102,1718494268374,-150.5,0.00019652,15]
[329601103,1718494268401,-150.5,0.00019652,15]
[329601104,1718494268411,-150.5,0.00019662,15]
[329601105,1718494268428,-150.5,0.00019662,15]
[329601106,1718494268441,-150.5,0.00019662,15]
[329601107,1718494268452,-520.0,0.0001976,2]
[329601108,1718494268467,-6269.45372724,0.0002,2]
[329601109,1718494268485,-155.42881719,0.0002,2]
[329601110,1718494268498,-155.0,0.0002,2]
[329601111,1718494268528,-187.6090952,0.0002,2]
[329601112,1718494268556,-291.0,0.0002,2]
[329601113,1718494268567,-190.0,0.0002,2]
[329601114,1718494268585,-865.86350875,0.0002,2]
[329601115,1718494268603,-979.0,0.0002,2]
[329601116,1718494268629,-583.0,0.0002,2]
[329601117,1718494268668,-155.0,0.0002,2]
[329601118,1718494268679,-1291.62972997,0.0002,2]
[329601119,1718494268708,-1782.31988206,0.0002,2]
[329601120,1718494268890,-155.0,0.0002,2]
[329601121,1718494268908,-156.25436202,0.0002,2]
[329601122,1718494268922,-1761.06242246,0.0002,2]
[329601123,1718494268941,-7720.22474481,0.0002,2]
[329601124,1718494268953,-510.21195869,0.0002,2]
[329601125,1718494268968,-684.26472482,0.0002,2]
[329601126,1718494268984,-3897.73390955,0.0002,2]
[329601127,1718494269001,-2618.99320206,0.0002,3]
[329601128,1718494269036,-184.52247358,0.0002,2]
[329601129,1718494269053,-23698.99124428,0.0002,2]
[329601130,1718494269106,-151.0,0.0002,2]
[329601131,1718494269119,-153.816871,0.0002,2]
[329601132,1718494269136,-153.816871,0.0002,2]
[329601133,1718494269153,-256.26985074,0.0002,2]
[329601134,1718494269165,-150.0,0.0002,2]
[329601135,1718494269191,-150.0,0.0002,2]
[329601136,1718494269204,-1000.0,0.0002,2]
[329601137,1718494269234,-274.65239,0.0002,2]
[329601138,1718494269254,-163.2,0.00020021,2]
[329601139,1718494269293,-6794.28339293,0.00020036,2]
[329601140,1718494269360,-559.26,0.00020086,2]
[329601141,1718494269386,-226.79813277,0.000201,2]
[329601142,1718494269412,-1304.0,0.000201,2]
[329601143,1718494269423,-2203.894,0.000201,2]
[329601144,1718494269485,-546.0,0.000201,2]
[329601145,1718494269503,-242.170085,0.000201,2]
[329601146,1718494269521,-242.170089,0.000201,2]
[329601147,1718494269553,-179.975035,0.000201,2]
[329601148,1718494269587,-179.975039,0.000201,2]
[329601149,1718494269599,-151.0,0.000201,2]
[329601150,1718494269624,-151.0,0.000201,2]
[329601151,1718494269644,-415.7641,0.000201,2]
[329601152,1718494269660,-415.764106,0.000201,2]
[329601153,1718494269672,-221.245418,0.000201,2]
[329601154,1718494269686,-296.051744,0.000201,2]
[329601155,1718494269709,-221.245418,0.000201,2]
[329601156,1718494269721,-151.0,0.000201,2]
[329601157,1718494269737,-151.0,0.000201,2]
[329601158,1718494269753,-222.102272,0.000201,2]
[329601159,1718494269776,-154.157289,0.000201,2]
[329601160,1718494269792,-156.400157,0.000201,2]
[329601161,1718494269804,-222.10228,0.000201,2]
[329601162,1718494269848,-154.157295,0.000201,2]
[329601163,1718494269868,-156.400153,0.000201,2]
[329601164,1718494269905,-151.0,0.000201,2]
[329601165,1718494269923,-4737.757,0.000201,2]
[329601166,1718494269946,-4111.593,0.000201,2]
[329601167,1718494269967,-1270.0,0.000201,2]
[329601168,1718494270002,-1189.0,0.000201,2]
[329601169,1718494270023,-1566.07728881,0.00020142,2]
[329601170,1718494270038,-1944.273281,0.0002029,2]
[329601171,1718494270063,-264.199445,0.0002029,2]
[329601172,1718494270082,-340.780014,0.0002029,2]
[329601173,1718494270109,-223.291856,0.0002029,2]
[329601174,1718494270123,-174.020191,0.0002029,2]
[329601175,1718494270139,-153.278576,0.0002029,2]
[329601176,1718494270195,-622.112218,0.0002029,2]
[329601177,1718494270218,-171.273403,0.0002029,2]
[329601178,1718494270247,-171.273403,0.0002029,2]
[329601179,1718494270271,-171.273403,0.0002029,2]
[329601180,1718494270287,-209.722558,0.000205,2]
[329601181,1718494270305,-209.722553,0.000205,2]
[329601182,1718494270317,-286.986012,0.000205,2]
[329601183,1718494270331,-151.0,0.000205,2]
[329601184,1718494270346,-153.816871,0.000205,2]
[329601185,1718494270358,-153.816871,0.000205,2]
[329601186,1718494270371,-150.0,0.000205,2]
[329601187,1718494270395,-150.0,0.000205,2]
[329601188,1718494270407,-1944.273281,0.00020543,2]
[329601189,1718494270462,-340.780014,0.00020543,2]
[329601190,1718494270481,-622.112218,0.00020543,2]
[329601191,1718494270500,-800.0,0.00020548,2]
[329601192,1718494270554,-800.0,0.00020548,2]
[329601193,1718494270583,-800.0,0.00020548,2]
[329601194,1718494270603,-800.0,0.00020548,2]
[329601195,1718494270615,-800.0,0.00020548,2]
[329601196,1718494270628,-171.14,0.00020548,2]
[329601197,1718494270657,-370.0,0.000206,2]
[329601198,1718494270669,-276.67615,0.000206,2]
[329601199,1718494270680,-153.278576,0.00020628,2]
[329601200,1718494270692,-1613.0,0.00020652,2]
[329601201,1718494270719,-3252.59167054,0.00020659,2]
[329601202,1718494270742,-429.90815903,0.0002066,2]
[329601203,1718494270754,-19705.55821115,0.000207,2]
[329601204,1718494270770,-151.0,0.000207,2]
[329601205,1718494270781,-151.0,0.000207,2]
[329601206,1718494270793,-154.9472,0.000207,2]
[329601207,1718494270810,-1944.273281,0.00020797,2]
[329601208,1718494270836,-340.780014,0.00020797,2]
[329601209,1718494270850,-622.112218,0.00020797,2]
[329601210,1718494270876,-460.54321371,0.00020817,2]
[329601211,1718494270901,-274.65239,0.00020822,2]
[329601212,1718494270912,-163.2,0.00020917,2]
[329601213,1718494270926,-153.278576,0.00020966,2]
[329601214,1718494270937,-1442.48306266,0.00021,2]
[329601215,1718494270957,-1250.0,0.00021,2]
[329601216,1718494270975,-150.0,0.00021,2]
[329601217,1718494270986,-150.0,0.00021,2]
[329601218,1718494270996,-1944.273281,0.00021051,2]
[329601219,1718494271011,-340.780014,0.00021051,2]
[329601220,1718494271025,-622.112218,0.00021051,2]
[329601221,1718494271045,-362.25,0.00021065,2]
[329601222,1718494271057,-201.914083,0.000211,2]
[329601223,1718494271077,-6794.28339293,0.00021264,2]
[329601224,1718494271094,-1944.273281,0.00021304,2]
[329601225,1718494271110,-340.780014,0.00021304,2]
[329601226,1718494271122,-153.278576,0.00021304,2]
[329601227,1718494271134,-622.112218,0.00021304,2]
[329601228,1718494271147,-223.291856,0.00021304,2]
[329601229,1718494271172,-174.020191,0.00021304,2]
[329601230,1718494271196,-3000.0,0.0002136,2]
[329601231,1718494271209,-519.49,0.0002137,2]
[329601232,1718494271223,-1566.07728881,0.00021391,2]
[329601233,1718494271239,-150.0,0.000215,3]
[329601234,1718494271252,-150.0,0.000215,3]
[329601235,1718494271263,-819.34051136,0.00021531,2]
[329601236,1718494271277,-30616.0,0.000218,2]
[329601237,1718494271289,-163.2,0.00021812,2]
[329601238,1718494271299,-750.0,0.000219,2]
[329601239,1718494271327,-300.85071183,0.00021915,2]
[329601240,1718494271343,-442893.64884876,0.00021915,2]
[329601241,1718494271359,-151.0,0.00021915,2]
[329601242,1718494271384,-153.816871,0.00021915,2]
[329601243,1718494271409,-153.816863,0.00021915,2]
[329601244,1718494271428,-155.0,0.00021916,2]
[329601245,1718494271447,-453.92333144,0.00021917,2]
[329601246,1718494271457,-500.0,0.00021917,2]
[329601247,1718494271487,-500.0,0.00021917,2]
[329601248,1718494271500,-500.0,0.00021917,2]
[329601249,1718494271514,-500.0,0.00021917,2]
[329601250,1718494271530,-500.0,0.00021917,2]
[329601251,1718494271541,-336.67693219,0.00021917,2]
[329601252,1718494271551,-500.0,0.00021917,2]
[329601253,1718494271562,-500.0,0.00021917,2]
[329601254,1718494271573,-500.0,0.00021917,2]
[329601255,1718494271588,-508.71904701,0.00021917,2]
[329601256,1718494271603,-500.0,0.00021917,2]
[329601257,1718494271615,-500.0,0.00021917,2]
[329601258,1718494271634,-524.4284745,0.00021917,2]
[329601259,1718494271659,-500.0,0.00021917,2]
[329601260,1718494271673,-500.0,0.00021917,2]
[329601261,1718494271700,-500.0,0.00021917,2]
[329601262,1718494271719,-507.29468874,0.00021917,2]
[329601263,1718494271729,-500.0,0.00021917,2]
[329601264,1718494271752,-500.0,0.00021917,2]
[329601265,1718494271768,-515.07776956,0.00021917,2]
[329601266,1718494271780,-500.0,0.00021917,2]
[329601267,1718494271808,-500.0,0.00021917,2]
[329601268,1718494271819,-500.0,0.00021917,2]
[329601269,1718494271847,-500.0,0.00021917,2]
[329601270,1718494271863,-418.45056062,0.00021917,2]
[329601271,1718494271900,-508.92888988,0.00021917,2]
[329601272,1718494271911,-500.0,0.00021917,2]
[329601273,1718494271938,-501.86745144,0.00021917,2]
[329601274,1718494271960,-500.0,0.00021917,2]
[329601275,1718494272012,-544.103924,0.00021917,2]
[329601276,1718494272037,-500.0,0.00021917,2]
[329601277,1718494272065,-500.0,0.00021917,2]
[329601278,1718494272096,-500.0,0.00021917,2]
[329601279,1718494272123,-500.0,0.00021917,2]
[329601280,1718494272135,-500.0,0.00021917,2]
[329601281,1718494272162,-500.0,0.00021917,2]
[329601282,1718494272198,-500.0,0.00021917,2]
[329601283,1718494272211,-580.41515203,0.00021917,2]
[329601284,1718494272226,-500.0,0.00021917,2]
[329601285,1718494272252,-500.0,0.00021917,2]
[329601286,1718494272266,-500.0,0.00021917,2]
[329601287,1718494272299,-500.0,0.00021917,2]
[329601288,1718494272330,-500.0,0.00021917,2]
[329601289,1718494272342,-500.0,0.00021917,2]
[329601290,1718494272367,-500.0,0.00021917,2]
[329601291,1718494272383,-500.0,0.00021917,2]
[329601292,1718494272407,-500.0,0.00021917,2]
[329601293,1718494272420,-500.0,0.00021917,2]
[329601294,1718494272453,-153.99688029,0.00021917,2]
[329601295,1718494272482,-500.0,0.00021917,2]
[329601296,1718494272495,-500.0,0.00021917,2]
[329601297,1718494272517,-500.0,0.00021917,2]
[329601298,1718494272530,-500.0,0.00021917,2]
[329601299,1718494272543,-500.0,0.00021917,2]
[329601300,1718494272555,-500.0,0.00021917,2]
[329601301,1718494272593,-500.0,0.00021917,2]
[329601302,1718494272607,-500.0,0.00021917,2]
[329601303,1718494272621,-341.85020983,0.00021917,2]
[329601304,1718494272644,-500.0,0.00021917,2]
[329601305,1718494272664,-500.0,0.00021917,2]
[329601306,1718494272699,-500.0,0.00021917,2]
[329601307,1718494272728,-500.0,0.00021917,2]
[329601308,1718494272771,-500.0,0.00021917,2]
[329601309,1718494272788,-500.0,0.00021917,2]
[329601310,1718494272825,-500.0,0.00021917,2]
[329601311,1718494272851,-500.0,0.00021917,2]
[329601312,1718494272901,-500.0,0.00021917,2]
[329601313,1718494272927,-500.0,0.00021917,2]
[329601314,1718494272947,-500.0,0.00021917,2]
[329601315,1718494272983,-500.0,0.00021917,2]
[329601316,1718494273007,-500.0,0.00021917,2]
[329601317,1718494273067,-500.0,0.00021917,2]
[329601318,1718494273113,-500.0,0.00021917,2]
[329601319,1718494273140,-505.78464942,0.00021917,2]
[329601320,1718494273155,-500.0,0.00021917,2]
[329601321,1718494273171,-500.0,0.00021917,2]
[329601322,1718494273183,-500.0,0.00021917,2]
[329601323,1718494273196,-500.0,0.00021917,2]
[329601324,1718494273216,-500.0,0.00021917,2]
[329601325,1718494273228,-500.0,0.00021917,2]
[329601326,1718494273249,-500.0,0.00021917,2]
[329601327,1718494273263,-500.0,0.00021917,2]
[329601328,1718494273276,-500.0,0.00021917,2]
[329601329,1718494273292,-500.0,0.00021917,2]
[329601330,1718494273311,-500.0,0.00021917,2]
[329601331,1718494273325,-500.0,0.00021917,2]
[329601332,1718494273356,-500.0,0.00021917,2]
[329601333,1718494273384,-500.0,0.00021917,2]
[329601334,1718494273401,-500.0,0.00021917,2]
[329601335,1718494273424,-500.0,0.00021917,2]
[329601336,1718494273435,-500.0,0.00021917,2]
[329601337,1718494273446,-500.0,0.00021917,2]
[329601338,1718494273457,-500.0,0.00021917,2]
[329601339,1718494273480,-310.0,0.00021917,2]
[329601340,1718494273491,-500.0,0.00021917,2]
[329601341,1718494273505,-273.99464657,0.00021917,2]
[329601342,1718494273517,-500.0,0.00021917,2]
[329601343,1718494273528,-500.0,0.00021917,2]
[329601344,1718494273538,-500.0,0.00021917,2]
[329601345,1718494273549,-500.0,0.00021917,2]
[329601346,1718494273571,-500.0,0.00021917,2]
[329601347,1718494273590,-500.0,0.00021917,2]
[329601348,1718494273613,-500.0,0.00021917,2]
[329601349,1718494273627,-500.0,0.00021917,2]
[329601350,1718494273648,-500.0,0.00021917,2]
[329601351,1718494273671,-2000.0,0.00021917,2]
[329601352,1718494273686,-500.0,0.00021917,2]
[329601353,1718494273703,-500.0,0.00021917,2]
[329601354,1718494273717,-500.0,0.00021917,2]
[329601355,1718494273728,-500.0,0.00021917,2]
[329601356,1718494273742,-500.0,0.00021917,2]
[329601357,1718494273756,-500.0,0.00021917,2]
[329601358,1718494273766,-500.0,0.00021917,2]
[329601359,1718494273778,-500.0,0.00021917,2]
[329601360,1718494273790,-500.0,0.00021917,2]
[329601361,1718494273804,-500.0,0.00021917,2]
[329601362,1718494273818,-500.0,0.00021917,2]
[329601363,1718494273836,-500.0,0.00021917,2]
[329601364,1718494273849,-500.0,0.00021917,2]
[329601365,1718494273895,-250.0,0.00021917,2]
[329601366,1718494273928,-500.0,0.00021917,2]
[329601367,1718494273941,-500.0,0.00021917,2]
[329601368,1718494273955,-485.19900676,0.00021917,2]
[329601369,1718494273973,-500.0,0.00021917,2]
[329601370,1718494273992,-500.0,0.00021917,2]
[329601371,1718494274020,-500.0,0.00021917,2]
[329601372,1718494274033,-500.0,0.00021917,2]
[329601373,1718494274044,-500.0,0.00021917,2]
[329601374,1718494274056,-546.05674172,0.00021917,2]
[329601375,1718494274069,-500.0,0.00021917,2]
[329601376,1718494274108,-500.0,0.00021917,2]
[329601377,1718494274132,-521.13060375,0.00021917,2]
[329601378,1718494274146,-500.0,0.00021917,2]
[329601379,1718494274164,-500.0,0.00021917,2]
[329601380,1718494274176,-501.86023388,0.00021917,2]
[329601381,1718494274196,-500.0,0.00021917,2]
[329601382,1718494274209,-500.0,0.00021917,2]
[329601383,1718494274416,-500.0,0.00021917,2]
[329601384,1718494274427,-500.0,0.00021917,2]
[329601385,1718494274443,-500.0,0.00021917,2]
[329601386,1718494274455,-500.0,0.00021917,2]
[329601387,1718494274465,-500.0,0.00021917,2]
[329601388,1718494274478,-500.0,0.00021917,2]
[329601389,1718494274491,-500.0,0.00021917,2]
[329601390,1718494274502,-500.0,0.00021917,2]
[329601391,1718494274526,-500.0,0.00021917,2]
[329601392,1718494274538,-500.0,0.00021917,2]
[329601393,1718494274549,-500.0,0.00021917,2]
[329601394,1718494274560,-500.0,0.00021917,2]
[329601395,1718494274578,-500.0,0.00021917,2]
[329601396,1718494274592,-507.59048817,0.00021917,2]
[329601397,1718494274607,-500.0,0.00021917,2]
[329601398,1718494274631,-500.0,0.00021917,2]
[329601399,1718494274646,-500.0,0.00021917,2]
[329601400,1718494274656,-500.0,0.00021917,2]
[329601401,1718494274668,-547.40100657,0.00021917,2]
[329601402,1718494274679,-500.0,0.00021917,2]
[329601403,1718494274689,-500.0,0.00021917,2]
[329601404,1718494274707,-500.0,0.00021917,2]
[329601405,1718494274721,-500.0,0.00021917,2]
[329601406,1718494274732,-500.0,0.00021917,2]
[329601407,1718494274751,-527.53062163,0.00021917,2]
[329601408,1718494274775,-500.0,0.00021917,2]
[329601409,1718494274786,-500.0,0.00021917,2]
[329601410,1718494274797,-500.0,0.00021917,2]
[329601411,1718494274816,-500.0,0.00021917,2]
[329601412,1718494274826,-500.0,0.00021917,2]
[329601413,1718494274837,-514.10365847,0.00021917,2]
[329601414,1718494274851,-501.53820443,0.00021917,2]
[329601415,1718494274862,-500.0,0.00021917,2]
[329601416,1718494274881,-500.0,0.00021917,2]
[329601417,1718494274905,-500.0,0.00021917,2]
[329601418,1718494274970,-500.0,0.00021917,2]
[329601419,1718494275015,-500.0,0.00021917,2]
[329601420,1718494275026,-500.0,0.00021917,2]
[329601421,1718494275036,-501.92804048,0.00021917,2]
[329601422,1718494275080,-500.0,0.00021917,2]
[329601423,1718494275117,-500.0,0.00021917,2]
[329601424,1718494275178,-500.0,0.00021917,2]
[329601425,1718494275200,-500.0,0.00021917,2]
[329601426,1718494275211,-501.38185139,0.00021917,2]
[329601427,1718494275236,-500.0,0.00021917,2]
[329601428,1718494275250,-500.0,0.00021917,2]
[329601429,1718494275288,-500.0,0.00021917,2]
[329601430,1718494275320,-500.0,0.00021917,2]
[329601431,1718494275332,-500.0,0.00021917,2]
[329601432,1718494275352,-500.0,0.00021917,2]
[329601433,1718494275363,-500.0,0.00021917,2]
[329601434,1718494275384,-500.0,0.00021917,2]
[329601435,1718494275397,-501.82181966,0.00021917,2]
[329601436,1718494275408,-500.0,0.00021917,2]
[329601437,1718494275424,-500.0,0.00021917,2]
[329601438,1718494275434,-631.26718893,0.00021917,2]
[329601439,1718494275468,-500.0,0.00021917,2]
[329601440,1718494275479,-506.70918247,0.00021917,2]
[329601441,1718494275500,-500.0,0.00021917,2]
[329601442,1718494275528,-622.47,0.00021917,2]
[329601443,1718494275545,-500.0,0.00021917,2]
[329601444,1718494275563,-500.0,0.00021917,2]
[329601445,1718494275575,-500.0,0.00021917,2]
[329601446,1718494275589,-500.0,0.00021917,2]
[329601447,1718494275606,-500.0,0.00021917,2]
[329601448,1718494275618,-500.0,0.00021917,2]
[329601449,1718494275630,-500.0,0.00021917,2]
[329601450,1718494275642,-500.0,0.00021917,2]
[329601451,1718494275660,-500.0,0.00021917,2]
[329601452,1718494275670,-500.0,0.00021917,2]
[329601453,1718494275696,-500.0,0.00021917,2]
[329601454,1718494275718,-500.0,0.00021917,2]
[329601455,1718494275730,-500.0,0.00021917,2]
[329601456,1718494275748,-500.0,0.00021917,2]
[329601457,1718494275760,-496.93185717,0.00021917,2]
[329601458,1718494275778,-500.0,0.00021917,2]
[329601459,1718494275802,-500.0,0.00021917,2]
[329601460,1718494275825,-500.0,0.00021917,2]
[329601461,1718494275854,-500.0,0.00021917,2]
[329601462,1718494275873,-500.0,0.00021917,2]
[329601463,1718494275888,-499.25719064,0.00021917,2]
[329601464,1718494275924,-500.0,0.00021917,2]
[329601465,1718494275937,-500.0,0.00021917,2]
[329601466,1718494275953,-500.0,0.00021917,2]
[329601467,1718494275964,-500.0,0.00021917,2]
[329601468,1718494275975,-501.79927568,0.00021917,2]
[329601469,1718494275988,-500.0,0.00021917,2]
[329601470,1718494276012,-500.0,0.00021917,2]
[329601471,1718494276032,-542.41133973,0.00021917,2]
[329601472,1718494276045,-500.0,0.00021917,2]
[329601473,1718494276057,-500.0,0.00021917,2]
[329601474,1718494276069,-500.0,0.00021917,2]
[329601475,1718494276080,-500.0,0.00021917,2]
[329601476,1718494276095,-500.0,0.00021917,2]
[329601477,1718494276114,-500.0,0.00021917,2]
[329601478,1718494276132,-500.0,0.00021917,2]
[329601479,1718494276152,-500.0,0.00021917,2]
[329601480,1718494276163,-500.0,0.00021917,2]
[329601481,1718494276175,-500.0,0.00021917,2]
[329601482,1718494276189,-500.0,0.00021917,2]
[329601483,1718494276203,-500.0,0.00021917,2]
[329601484,1718494276229,-500.0,0.00021917,2]
[329601485,1718494276247,-500.0,0.00021917,2]
[329601486,1718494276258,-500.0,0.00021917,2]
[329601487,1718494276271,-500.0,0.00021917,2]
[329601488,1718494276283,-500.0,0.00021917,2]
[329601489,1718494276325,-500.0,0.00021917,2]
[329601490,1718494276339,-500.0,0.00021917,2]
[329601491,1718494276355,-500.0,0.00021917,2]
[329601492,1718494276367,-500.0,0.00021917,2]
[329601493,1718494276383,-500.0,0.00021917,2]
[329601494,1718494276396,-500.0,0.00021917,2]
[329601495,1718494276409,-500.83342626,0.00021917,2]
[329601496,1718494276423,-500.0,0.00021917,2]
[329601497,1718494276436,-500.0,0.00021917,2]
[329601498,1718494276450,-500.0,0.00021917,2]
[329601499,1718494276476,-500.0,0.00021917,2]
[329601500,1718494276489,-500.0,0.00021917,2]
[329601501,1718494276522,-500.0,0.00021917,2]
[329601502,1718494276549,-500.0,0.00021917,2]
[329601503,1718494276562,-500.0,0.00021917,2]
[329601504,1718494276581,-500.0,0.00021917,2]
[329601505,1718494276592,-500.0,0.00021917,2]
[329601506,1718494276604,-500.0,0.00021917,2]
[329601507,1718494276615,-500.0,0.00021917,2]
[329601508,1718494276638,-500.0,0.00021917,2]
[329601509,1718494276664,-500.0,0.00021917,2]
[329601510,1718494276682,-500.0,0.00021917,2]
[329601511,1718494276693,-500.0,0.00021917,2]
[329601512,1718494276748,-500.0,0.00021917,2]
[329601513,1718494276764,-500.0,0.00021917,2]
[329601514,1718494276774,-500.0,0.00021917,2]
[329601515,1718494276785,-500.0,0.00021917,2]
[329601516,1718494276800,-184.26018314,0.00021917,2]
[329601517,1718494276824,-500.0,0.00021917,2]
[329601518,1718494276850,-508.60180928,0.00021917,2]
[329601519,1718494276864,-500.0,0.00021917,2]
[329601520,1718494276876,-500.0,0.00021917,2]
[329601521,1718494276888,-500.0,0.00021917,2]
[329601522,1718494276899,-500.0,0.00021917,2]
[329601523,1718494276927,-500.0,0.00021917,2]
[329601524,1718494276957,-500.0,0.00021917,2]
[329601525,1718494276973,-500.0,0.00021917,2]
[329601526,1718494276988,-500.0,0.00021917,2]
[329601527,1718494277026,-500.0,0.00021917,2]
[329601528,1718494277041,-500.0,0.00021917,2]
[329601529,1718494277068,-500.0,0.00021917,2]
[329601530,1718494277080,-500.0,0.00021917,2]
[329601531,1718494277094,-500.0,0.00021917,2]
[329601532,1718494277108,-245.46957316,0.00021917,2]
[329601533,1718494277120,-500.0,0.00021917,2]
[329601534,1718494277131,-500.0,0.00021917,2]
[329601535,1718494277157,-500.0,0.00021917,2]
[329601536,1718494277170,-500.0,0.00021917,2]
[329601537,1718494277197,-500.0,0.00021917,2]
[329601538,1718494277218,-500.0,0.00021917,2]
[329601539,1718494277229,-500.0,0.00021917,2]
[329601540,1718494277248,-647.06015092,0.00021917,2]
[329601541,1718494277261,-520.26868849,0.00021917,2]
[329601542,1718494277274,-500.0,0.00021917,2]
[329601543,1718494277287,-500.0,0.00021917,2]
[329601544,1718494277301,-500.0,0.00021917,2]
[329601545,1718494277314,-291.32542202,0.00021917,2]
[329601546,1718494277325,-500.0,0.00021917,2]
[329601547,1718494277348,-500.0,0.00021917,2]
[329601548,1718494277357,-500.0,0.00021917,2]
[329601549,1718494277367,-500.0,0.00021917,2]
[329601550,1718494277377,-500.0,0.00021917,2]
[329601551,1718494277388,-500.0,0.00021917,2]
[329601552,1718494277416,-500.0,0.00021917,2]
[329601553,1718494277427,-500.0,0.00021917,2]
[329601554,1718494277444,-500.0,0.00021917,2]
[329601555,1718494277456,-500.0,0.00021917,2]
[329601556,1718494277474,-500.0,0.00021917,2]
[329601557,1718494277491,-500.0,0.00021917,2]
[329601558,1718494277501,-500.0,0.00021917,2]
[329601559,1718494277511,-500.0,0.00021917,2]
[329601560,1718494277521,-500.0,0.00021917,2]
[329601561,1718494277532,-500.0,0.00021917,2]
[329601562,1718494277543,-500.0,0.00021917,2]
[329601563,1718494277559,-500.0,0.00021917,2]
[329601564,1718494277581,-195.24354536,0.00021917,2]
[329601565,1718494277600,-512.1790504,0.00021917,2]
[329601566,1718494277611,-711.03,0.00021917,2]
[329601567,1718494277625,-221.59382924,0.00021917,2]
[329601568,1718494277640,-500.0,0.00021917,2]
[329601569,1718494277653,-500.0,0.00021917,2]
[329601570,1718494277663,-500.0,0.00021917,2]
[329601571,1718494277684,-500.0,0.00021917,2]
[329601572,1718494277695,-500.0,0.00021917,2]
[329601573,1718494277708,-500.0,0.00021917,2]
[329601574,1718494277719,-500.0,0.00021917,2]
[329601575,1718494277736,-500.0,0.00021917,2]
[329601576,1718494277746,-500.0,0.00021917,2]
[329601577,1718494277757,-526.89074699,0.00021917,2]
[329601578,1718494277769,-500.0,0.00021917,2]
[329601579,1718494277792,-500.0,0.00021917,2]
[329601580,1718494277807,-500.0,0.00021917,2]
[329601581,1718494277818,-500.0,0.00021917,2]
[329601582,1718494277836,-500.0,0.00021917,2]
[329601583,1718494277856,-500.0,0.00021917,2]
[329601584,1718494277867,-500.0,0.00021917,2]
[329601585,1718494277884,-500.0,0.00021917,2]
[329601586,1718494277895,-515.06664741,0.00021917,2]
[329601587,1718494277908,-500.0,0.00021917,2]
[329601588,1718494277924,-500.0,0.00021917,2]
[329601589,1718494277935,-500.0,0.00021917,2]
[329601590,1718494277947,-500.0,0.00021917,2]
[329601591,1718494277962,-500.0,0.00021917,2]
[329601592,1718494277974,-500.0,0.00021917,2]
[329601593,1718494277993,-500.0,0.00021917,2]
[329601594,1718494278014,-509.21593515,0.00021917,2]
[329601595,1718494278027,-500.0,0.00021917,2]
[329601596,1718494278052,-500.0,0.00021917,2]